fUST/lending_fUST_20240901
["ID","MTS","AMOUNT","RATE_DAILY","PERIOD"]
[336818672,1725190256403,-500.0,0.00028218,15]
[336818673,1725190256413,-739.39,0.00028218,15]
[336818674,1725190256423,-240.18283585,0.00028218,15]
[336818675,1725190256432,-500.0,0.00028218,15]
[336818676,1725190256441,-968.22,0.00028218,15]
[336818677,1725190256451,-500.0,0.00028218,15]
[336818678,1725190256460,-500.0,0.00028218,15]
[336818679,1725190256470,-1115.8,0.00028218,15]
[336818680,1725190256479,-233.539968,0.00028218,7]
[336818681,1725190256489,-233.539968,0.00028218,7]
[336818682,1725190256498,-151.0,0.00028218,7]
[336818683,1725190256508,-500.0,0.00028218,15]
[336818684,1725190256517,-508.2131904,0.00028218,15]
[336818685,1725190256527,-500.0,0.00028218,15]
[336818686,1725190256537,-731.19,0.00028218,15]
[336818687,1725190256549,-151.0,0.00028218,7]
[336818688,1725190256562,-535.55,0.00028218,15]
[336818689,1725190256571,-422.080597,0.00028218,7]
[336818690,1725190256581,-195.395035,0.00028218,7]
[336818691,1725190256590,-422.080597,0.00028218,7]
[336818692,1725190256601,-668.48,0.00028218,15]
[336818693,1725190256611,-195.395035,0.00028218,7]
[336818694,1725190256621,-165.150562,0.00028218,7]
[336818695,1725190256632,-151.0,0.00028218,7]
[336818696,1725190256641,-165.150562,0.00028218,7]
[336818697,1725190256651,-500.0,0.00028218,15]
[336818698,1725190256660,-500.0,0.00028218,15]
[336818699,1725190256669,-802.33,0.00028218,15]
[336818700,1725190256678,-500.0,0.00028218,15]
[336818701,1725190256689,-500.0,0.00028218,15]
[336818702,1725190256698,-500.0,0.00028218,15]
[336818703,1725190256707,-500.0,0.00028218,15]
[336818704,1725190256717,-500.0,0.00028218,15]
[336818705,1725190256726,-151.0,0.00028218,7]
[336818706,1725190256736,-190.002389,0.00028218,7]
[336818707,1725190256745,-500.0,0.00028219,15]
[336818708,1725190256760,-162.18487344,0.00028219,15]
[336818709,1725190256769,-500.0,0.00028219,15]
[336818710,1725190256779,-500.0,0.00028219,15]
[336818711,1725190256788,-500.0,0.00028219,15]
[336818712,1725190256798,-500.0,0.00028219,15]
[336818713,1725190256807,-507.11306318,0.00028219,15]
[336818714,1725190256816,-500.0,0.00028219,15]
[336818715,1725190256826,-1000.0,0.00028221,4]
[336818716,1725190256835,-153.0,0.00028247,2]
[336818717,1725190256844,-153.0,0.00028247,2]
[336818718,1725190256854,-153.0,0.00028247,2]
[336818719,1725190256863,-153.0,0.00028247,2]
[336818720,1725190256873,-500.0,0.00028273,5]
[336818721,1725190256883,-500.0,0.00028287,15]
[336818722,1725190256892,-247.064387,0.0002833,7]
[336818723,1725190256901,-151.0,0.0002833,7]
[336818724,1725190256911,-5021.96,0.00028489,15]
[336818725,1725190256920,-741.43,0.00028489,15]
[336818726,1725190256929,-1278.04,0.00028489,15]
[336818727,1725190256939,-960.88,0.00028489,15]
[336818728,1725190256948,-1153.21,0.00028489,15]
[336818729,1725190256958,-815.48,0.00028489,15]
[336818730,1725190256968,-21602.6,0.00028489,15]
[336818731,1725190256977,-1097.19,0.00028489,15]
[336818732,1725190256987,-500.0,0.00028489,15]
[336818733,1725190256997,-1235.74,0.00028489,15]
[336818734,1725190257007,-709.907493,0.00028489,7]
[336818735,1725190257017,-709.907493,0.00028489,7]
[336818736,1725190257027,-7508.14,0.00028489,15]
[336818737,1725190257037,-4510.39,0.00028489,15]
[336818738,1725190257046,-5144.95,0.00028489,15]
[336818739,1725190257056,-553.99,0.00028489,15]
[336818740,1725190257065,-1222.36,0.00028489,15]
[336818741,1725190257075,-734.35,0.00028489,15]
[336818742,1725190257085,-151.0,0.00028489,7]
[336818743,1725190257094,-151.0,0.0002849,7]
[336818744,1725190257104,-500.0,0.0002849,15]
[336818745,1725190257113,-151.0,0.0002849,7]
[336818746,1725190257123,-151.0,0.0002849,7]
[336818747,1725190257132,-1750.1,0.0002849,15]
[336818748,1725190257141,-500.0,0.0002849,15]
[336818749,1725190257151,-2695.32,0.0002849,15]
[336818750,1725190257160,-198.218826,0.0002849,7]
[336818751,1725190257170,-4145.03,0.0002849,15]
[336818752,1725190257180,-198.218826,0.0002849,7]
[336818753,1725190257189,-4014.95,0.0002849,15]
[336818754,1725190257199,-500.0,0.0002849,15]
[336818755,1725190257208,-32741.1,0.0002849,8]
[336818756,1725190257218,-7452.19,0.0002849,15]
[336818757,1725190257233,-1410.77,0.0002849,15]
[336818758,1725190257247,-533.66,0.0002849,15]
[336818759,1725190257258,-3313.62,0.0002849,15]
[336818760,1725190257268,-1583.29,0.0002849,15]
[336818761,1725190257278,-500.0,0.0002849,15]
[336818762,1725190257287,-500.0,0.0002849,15]
[336818763,1725190257297,-151.0,0.0002849,7]
[336818764,1725190257307,-2520.25,0.0002849,15]
[336818765,1725190257316,-2691.19,0.0002849,15]
[336818766,1725190257326,-195.395035,0.0002849,7]
[336818767,1725190257337,-195.395035,0.0002849,7]
[336818768,1725190257347,-500.0,0.0002849,15]
[336818769,1725190257357,-165.150562,0.0002849,7]
[336818770,1725190257367,-891.84,0.0002849,15]
[336818771,1725190257376,-165.150562,0.0002849,7]
[336818772,1725190257386,-1013.73,0.0002849,15]
[336818773,1725190257396,-936.11,0.0002849,15]
[336818774,1725190257405,-502.50086175,0.0002849,15]
[336818775,1725190257415,-3466.34,0.0002849,15]
[336818776,1725190257425,-709.907493,0.0002849,7]
[336818777,1725190257435,-709.907493,0.0002849,7]
[336818778,1725190257447,-574.88,0.0002849,15]
[336818779,1725190257457,-4031.65,0.0002849,15]
[336818780,1725190257467,-151.0,0.0002849,7]
[336818781,1725190257476,-1852.87,0.0002849,15]
[336818782,1725190257486,-500.0,0.00028491,15]
[336818783,1725190257496,-2143.4,0.00028491,15]
[336818784,1725190257507,-500.0,0.00028491,15]
[336818785,1725190257517,-500.0,0.00028491,15]
[336818786,1725190257527,-500.0,0.00028491,15]
[336818787,1725190257536,-500.0,0.00028491,15]
[336818788,1725190257548,-913.5,0.00028491,15]
[336818789,1725190257559,-957.06,0.00028491,15]
[336818790,1725190257569,-500.0,0.00028491,15]
[336818791,1725190257578,-607.13,0.00028491,15]
[336818792,1725190257589,-500.0,0.00028491,15]
[336818793,1725190257598,-1295.04,0.00028491,15]
[336818794,1725190257608,-151.0,0.00028491,7]
[336818795,1725190257618,-500.0,0.00028491,15]
[336818796,1725190257631,-500.0,0.00028491,15]
[336818797,1725190257640,-500.0,0.00028491,15]
[336818798,1725190257650,-151.0,0.00028491,7]
[336818799,1725190257659,-500.0,0.00028491,15]
[336818800,1725190257669,-500.0,0.00028491,15]
[336818801,1725190257678,-500.0,0.00028491,15]
[336818802,1725190257687,-540.26,0.00028491,15]
[336818803,1725190257697,-1687.85,0.00028491,15]
[336818804,1725190257706,-1256.23,0.00028491,15]
[336818805,1725190257715,-500.0,0.00028491,15]
[336818806,1725190257725,-670.09,0.00028491,15]
[336818807,1725190257734,-910.82,0.00028491,15]
[336818808,1725190257743,-710.04,0.00028491,15]
[336818809,1725190257753,-500.0,0.00028491,15]
[336818810,1725190257762,-1102.69,0.00028491,15]
[336818811,1725190257772,-1190.65,0.00028491,15]
[336818812,1725190257782,-556.69,0.00028491,15]
[336818813,1725190257791,-2371.33,0.00028491,15]
[336818814,1725190257800,-500.0,0.00028491,15]
[336818815,1725190257810,-560.63,0.00028491,15]
[336818816,1725190257819,-1985.26,0.00028491,15]
[336818817,1725190257828,-6498.82,0.00028491,15]
[336818818,1725190257838,-500.0,0.00028491,15]
[336818819,1725190257847,-542.64,0.00028491,15]
[336818820,1725190257857,-500.0,0.00028491,15]
[336818821,1725190257867,-500.0,0.00028491,15]
[336818822,1725190257876,-500.0,0.00028491,15]
[336818823,1725190257886,-500.0,0.00028491,15]
[336818824,1725190257897,-834.9,0.00028491,15]
[336818825,1725190257907,-500.0,0.00028491,15]
[336818826,1725190257916,-500.0,0.00028491,15]
[336818827,1725190257925,-1619.73,0.00028491,15]
[336818828,1725190257935,-1079.6,0.00028491,15]
[336818829,1725190257945,-233.539968,0.00028491,7]
[336818830,1725190257954,-500.0,0.00028491,15]
[336818831,1725190257964,-151.0,0.00028491,7]
[336818832,1725190257974,-233.539968,0.00028491,7]
[336818833,1725190257984,-623.31,0.00028491,15]
[336818834,1725190257993,-743.79,0.00028491,15]
[336818835,1725190258004,-500.0,0.00028491,15]
[336818836,1725190258013,-708.75,0.00028491,15]
[336818837,1725190258023,-500.0,0.00028491,15]
[336818838,1725190258033,-151.0,0.00028491,7]
[336818839,1725190258042,-1914.34,0.00028491,15]
[336818840,1725190258052,-422.080597,0.00028491,7]
[336818841,1725190258062,-3913.52,0.00028491,15]
[336818842,1725190258072,-422.080597,0.00028491,7]
[336818843,1725190258082,-195.395035,0.00028491,7]
[336818844,1725190258092,-195.395035,0.00028491,7]
[336818845,1725190258101,-5515.16,0.00028491,15]
[336818846,1725190258111,-165.150562,0.00028491,7]
[336818847,1725190258120,-276.977647,0.00028491,7]
[336818848,1725190258130,-165.150562,0.00028491,7]
[336818849,1725190258139,-1204.33,0.00028491,15]
[336818850,1725190258149,-1053.79,0.00028491,15]
[336818851,1725190258158,-500.0,0.00028491,15]
[336818852,1725190258168,-13912.41,0.00028491,15]
[336818853,1725190258177,-500.0,0.00028491,15]
[336818854,1725190258186,-500.0,0.00028491,15]
[336818855,1725190258195,-579.21,0.00028491,15]
[336818856,1725190258205,-1301.12,0.00028491,15]
[336818857,1725190258213,-151.0,0.00028491,7]
[336818858,1725190258223,-1121.35,0.00028491,15]
[336818859,1725190258232,-500.0,0.00028491,15]
[336818860,1725190258241,-500.0,0.00028492,15]
[336818861,1725190258252,-500.0,0.00028492,15]
[336818862,1725190258261,-176.45216425,0.00028492,15]
[336818863,1725190258270,-500.0,0.00028492,15]
[336818864,1725190258279,-504.98489087,0.00028492,15]
[336818865,1725190258289,-500.0,0.00028492,15]
[336818866,1725190258298,-500.0,0.00028492,15]
[336818867,1725190258308,-200.0,0.00028492,7]
[336818868,1725190258317,-283.08670458,0.00028492,15]
[336818869,1725190258326,-151.0,0.00028492,7]
[336818870,1725190258336,-500.0,0.00028492,15]
[336818871,1725190258345,-507.57442435,0.00028492,15]
[336818872,1725190258355,-500.0,0.00028492,15]
[336818873,1725190258365,-500.0,0.00028492,15]
[336818874,1725190258375,-567.53,0.00028492,15]
[336818875,1725190258385,-500.0,0.00028492,15]
[336818876,1725190258394,-1049.89,0.00028492,15]
[336818877,1725190258404,-500.0,0.00028492,15]
[336818878,1725190258414,-500.0,0.00028492,15]
[336818879,1725190258571,-500.0,0.00028492,15]
[336818880,1725190258581,-500.0,0.00028492,15]
[336818881,1725190258591,-500.0,0.00028492,15]
[336818882,1725190258602,-500.0,0.00028492,15]
[336818883,1725190258611,-373.26231156,0.00028492,15]
[336818884,1725190258621,-500.0,0.00028492,15]
[336818885,1725190258631,-761.9,0.00028492,15]
[336818886,1725190258640,-264.773244,0.00028492,7]
[336818887,1725190258650,-500.0,0.00028492,15]
[336818888,1725190258659,-264.773244,0.00028492,7]
[336818889,1725190258668,-795.65,0.00028492,15]
[336818890,1725190258678,-500.0,0.00028492,15]
[336818891,1725190258687,-151.0,0.00028492,7]
[336818892,1725190258696,-764.37,0.00028492,15]
[336818893,1725190258705,-500.0,0.00028492,15]
[336818894,1725190258714,-500.0,0.00028492,15]
[336818895,1725190258724,-629.77,0.00028492,15]
[336818896,1725190258733,-500.0,0.00028492,15]
[336818897,1725190258742,-1215.96,0.00028492,15]
[336818898,1725190258752,-500.0,0.00028492,15]
[336818899,1725190258761,-500.0,0.00028492,15]
[336818900,1725190258770,-500.0,0.00028492,15]
[336818901,1725190258780,-151.0,0.00028492,7]
[336818902,1725190258789,-500.0,0.00028492,15]
[336818903,1725190258798,-151.0,0.00028492,7]
[336818904,1725190258808,-151.0,0.00028492,7]
[336818905,1725190258817,-500.0,0.00028492,15]
[336818906,1725190258827,-1170.7,0.00028492,15]
[336818907,1725190258836,-500.0,0.00028492,15]
[336818908,1725190258845,-500.0,0.00028492,15]
[336818909,1725190258854,-500.0,0.00028492,15]
[336818910,1725190258864,-500.0,0.00028492,15]
[336818911,1725190258873,-642.09,0.00028492,15]
[336818912,1725190258882,-1085.86,0.00028492,15]
[336818913,1725190258891,-198.218826,0.00028492,7]
[336818914,1725190258900,-500.0,0.00028492,15]
[336818915,1725190258910,-739.39,0.00028492,15]
[336818916,1725190258919,-198.218826,0.00028492,7]
[336818917,1725190258928,-500.0,0.00028492,15]
[336818918,1725190258938,-968.22,0.00028492,15]
[336818919,1725190258948,-500.0,0.00028492,15]
[336818920,1725190258957,-500.0,0.00028492,15]
[336818921,1725190258966,-1115.8,0.00028492,15]
[336818922,1725190258976,-233.539968,0.00028492,7]
[336818923,1725190258985,-151.0,0.00028492,7]
[336818924,1725190258996,-233.539968,0.00028492,7]
[336818925,1725190259006,-500.0,0.00028492,15]
[336818926,1725190259015,-500.0,0.00028492,15]
[336818927,1725190259024,-731.19,0.00028492,15]
[336818928,1725190259034,-535.55,0.00028492,15]
[336818929,1725190259044,-422.080597,0.00028492,7]
[336818930,1725190259054,-422.080597,0.00028492,7]
[336818931,1725190259064,-668.48,0.00028492,15]
[336818932,1725190259073,-500.0,0.00028492,15]
[336818933,1725190259083,-500.0,0.00028492,15]
[336818934,1725190259092,-802.33,0.00028492,15]
[336818935,1725190259102,-512.0487366,0.00028492,15]
[336818936,1725190259111,-500.0,0.00028492,15]
[336818937,1725190259121,-500.0,0.00028492,15]
[336818938,1725190259130,-709.907493,0.00028492,7]
[336818939,1725190259140,-709.9075,0.00028492,7]
[336818940,1725190259149,-500.0,0.00028492,15]
[336818941,1725190259159,-500.0,0.00028492,15]
[336818942,1725190259168,-500.0,0.00028493,15]
[336818943,1725190259177,-500.0,0.00028493,15]
[336818944,1725190259186,-500.0,0.00028493,15]
[336818945,1725190259195,-151.0,0.00028493,7]
[336818946,1725190259204,-500.0,0.00028493,15]
[336818947,1725190259214,-500.0,0.00028493,15]
[336818948,1725190259223,-500.0,0.00028493,15]
[336818949,1725190259232,-151.0,0.00028493,7]
[336818950,1725190259242,-179.79939554,0.00028493,7]
[336818951,1725190259251,-151.0,0.00028493,7]
[336818952,1725190259260,-195.395035,0.00028493,7]
[336818953,1725190259270,-195.395042,0.00028493,7]
[336818954,1725190259280,-165.150562,0.00028493,7]
[336818955,1725190259289,-165.150565,0.00028493,7]
[336818956,1725190259300,-151.0,0.00028493,7]
[336818957,1725190259309,-863.56801204,0.00028518,2]
[336818958,1725190259319,-250.0,0.00028521,5]
[336818959,1725190259328,-500.0,0.00028561,15]
[336818960,1725190259337,-5021.96,0.00028763,15]
[336818961,1725190259347,-741.43,0.00028763,15]
[336818962,1725190259356,-1278.04,0.00028763,15]
[336818963,1725190259366,-960.88,0.00028763,15]
[336818964,1725190259375,-1153.21,0.00028763,15]
[336818965,1725190259385,-815.48,0.00028763,15]
[336818966,1725190259395,-21602.6,0.00028763,15]
[336818967,1725190259404,-1097.19,0.00028763,15]
[336818968,1725190259414,-500.0,0.00028763,15]
[336818969,1725190259423,-1235.74,0.00028763,15]
[336818970,1725190259432,-7508.14,0.00028763,15]
[336818971,1725190259441,-4510.39,0.00028763,15]
[336818972,1725190259450,-5144.95,0.00028763,15]
[336818973,1725190259460,-553.99,0.00028763,15]
[336818974,1725190259470,-1222.36,0.00028763,15]
[336818975,1725190259479,-734.35,0.00028763,15]
[336818976,1725190259489,-500.0,0.00028764,15]
[336818977,1725190259498,-1750.1,0.00028764,15]
[336818978,1725190259514,-500.0,0.00028764,15]
[336818979,1725190259523,-2695.32,0.00028764,15]
[336818980,1725190259532,-4145.03,0.00028764,15]
[336818981,1725190259542,-4014.95,0.00028764,15]
[336818982,1725190259555,-500.0,0.00028764,15]
[336818983,1725190259564,-32741.1,0.00028764,8]
[336818984,1725190259574,-7452.19,0.00028764,15]
[336818985,1725190259583,-1410.77,0.00028764,15]
[336818986,1725190259593,-533.66,0.00028764,15]
[336818987,1725190259603,-3313.62,0.00028764,15]
[336818988,1725190259612,-1583.29,0.00028764,15]
[336818989,1725190259621,-500.0,0.00028764,15]
[336818990,1725190259631,-500.0,0.00028764,15]
[336818991,1725190259640,-2520.25,0.00028764,15]
[336818992,1725190259649,-2691.19,0.00028764,15]
[336818993,1725190259658,-500.0,0.00028764,15]
[336818994,1725190259668,-891.84,0.00028764,15]
[336818995,1725190259677,-1013.73,0.00028764,15]
[336818996,1725190259686,-936.11,0.00028764,15]
[336818997,1725190259695,-3466.34,0.00028764,15]
[336818998,1725190259704,-574.88,0.00028764,15]
[336818999,1725190259713,-4031.65,0.00028764,15]
[336819000,1725190259723,-1852.87,0.00028764,15]
[336819001,1725190259732,-500.0,0.00028765,15]
[336819002,1725190259741,-2143.4,0.00028765,15]
[336819003,1725190259750,-500.0,0.00028765,15]
[336819004,1725190259760,-500.0,0.00028765,15]
[336819005,1725190259769,-500.0,0.00028765,15]
[336819006,1725190259778,-500.0,0.00028765,15]
[336819007,1725190259787,-913.5,0.00028765,15]
[336819008,1725190259798,-957.06,0.00028765,15]
[336819009,1725190259807,-151.0,0.00028765,7]
[336819010,1725190259816,-514.98848906,0.00028765,15]
[336819011,1725190259825,-607.13,0.00028765,15]
[336819012,1725190259835,-500.0,0.00028765,15]
[336819013,1725190259844,-1295.04,0.00028765,15]
[336819014,1725190259854,-151.0,0.00028765,7]
[336819015,1725190259863,-500.0,0.00028765,15]
[336819016,1725190259873,-500.0,0.00028765,15]
[336819017,1725190259883,-500.0,0.00028765,15]
[336819018,1725190259892,-185.387607,0.00028765,7]
[336819019,1725190259902,-500.0,0.00028765,15]
[336819020,1725190259912,-500.0,0.00028765,15]
[336819021,1725190259922,-500.0,0.00028765,15]
[336819022,1725190259932,-540.26,0.00028765,15]
[336819023,1725190259943,-1687.85,0.00028765,15]
[336819024,1725190259952,-213.421712,0.00028765,7]
[336819025,1725190259963,-1256.23,0.00028765,15]
[336819026,1725190259972,-500.0,0.00028765,15]
[336819027,1725190259981,-670.09,0.00028765,15]
[336819028,1725190259991,-910.82,0.00028765,15]
[336819029,1725190260001,-151.0,0.00028765,7]
[336819030,1725190260011,-710.04,0.00028765,15]
[336819031,1725190260021,-500.0,0.00028765,15]
[336819032,1725190260031,-151.0,0.00028765,7]
[336819033,1725190260040,-1102.69,0.00028765,15]
[336819034,1725190260049,-1190.65,0.00028765,15]
[336819035,1725190260059,-556.69,0.00028765,15]
[336819036,1725190260069,-2371.33,0.00028765,15]
[336819037,1725190260078,-500.0,0.00028765,15]
[336819038,1725190260088,-560.63,0.00028765,15]
[336819039,1725190260098,-198.218826,0.00028765,7]
[336819040,1725190260108,-1985.26,0.00028765,15]
[336819041,1725190260117,-198.218826,0.00028765,7]
[336819042,1725190260127,-6498.82,0.00028765,15]
[336819043,1725190260137,-500.0,0.00028765,15]
[336819044,1725190260146,-542.64,0.00028765,15]
[336819045,1725190260156,-500.0,0.00028765,15]
[336819046,1725190260165,-500.0,0.00028765,15]
[336819047,1725190260176,-500.0,0.00028765,15]
[336819048,1725190260185,-500.0,0.00028765,15]
[336819049,1725190260195,-834.9,0.00028765,15]
[336819050,1725190260204,-500.0,0.00028765,15]
[336819051,1725190260213,-500.0,0.00028765,15]
[336819052,1725190260223,-1619.73,0.00028765,15]
[336819053,1725190260233,-1079.6,0.00028765,15]
[336819054,1725190260243,-233.539968,0.00028765,7]
[336819055,1725190260254,-500.0,0.00028765,15]
[336819056,1725190260269,-151.0,0.00028765,7]
[336819057,1725190260279,-233.539968,0.00028765,7]
[336819058,1725190260288,-623.31,0.00028765,15]
[336819059,1725190260298,-743.79,0.00028765,15]
[336819060,1725190260308,-500.0,0.00028765,15]
[336819061,1725190260317,-708.75,0.00028765,15]
[336819062,1725190260327,-500.0,0.00028765,15]
[336819063,1725190260336,-1914.34,0.00028765,15]
[336819064,1725190260346,-422.080597,0.00028765,7]
[336819065,1725190260356,-3913.52,0.00028765,15]
[336819066,1725190260365,-422.080597,0.00028765,7]
[336819067,1725190260375,-5515.16,0.00028765,15]
[336819068,1725190260385,-1204.33,0.00028765,15]
[336819069,1725190260395,-1053.79,0.00028765,15]
[336819070,1725190260405,-500.0,0.00028765,15]
[336819071,1725190260415,-13912.41,0.00028765,15]
[336819072,1725190260424,-500.0,0.00028765,15]
[336819073,1725190260433,-500.0,0.00028765,15]
[336819074,1725190260442,-579.21,0.00028765,15]
[336819075,1725190260452,-1301.12,0.00028765,15]
[336819076,1725190260461,-1121.35,0.00028765,15]
[336819077,1725190260471,-500.0,0.00028765,15]
[336819078,1725190260480,-500.0,0.00028766,15]
[336819079,1725190260490,-500.0,0.00028766,15]
[336819080,1725190260500,-500.0,0.00028766,15]
[336819081,1725190260510,-211.24772185,0.00028766,15]
[336819082,1725190260520,-500.0,0.00028766,15]
[336819083,1725190260529,-200.0,0.00028766,7]
[336819084,1725190260538,-151.0,0.00028766,7]
[336819085,1725190260549,-359.81207585,0.00028766,15]
[336819086,1725190260560,-500.0,0.00028766,15]
[336819087,1725190260569,-500.0,0.00028766,15]
[336819088,1725190260579,-567.53,0.00028766,15]
[336819089,1725190260589,-500.0,0.00028766,15]
[336819090,1725190260600,-1049.89,0.00028766,15]
[336819091,1725190260610,-500.0,0.00028766,15]
[336819092,1725190260619,-500.0,0.00028766,15]
[336819093,1725190260632,-500.0,0.00028766,15]
[336819094,1725190260642,-500.0,0.00028766,15]
[336819095,1725190260652,-470.20739841,0.00028766,15]
[336819096,1725190260661,-500.0,0.00028766,15]
[336819097,1725190260670,-500.0,0.00028766,15]
[336819098,1725190260679,-761.9,0.00028766,15]
[336819099,1725190260688,-264.773244,0.00028766,7]
[336819100,1725190260697,-500.0,0.00028766,15]
[336819101,1725190260706,-264.773244,0.00028766,7]
[336819102,1725190260715,-795.65,0.00028766,15]
[336819103,1725190260724,-500.0,0.00028766,15]
[336819104,1725190260734,-764.37,0.00028766,15]
[336819105,1725190260743,-500.0,0.00028766,15]
[336819106,1725190260753,-500.0,0.00028766,15]
[336819107,1725190260762,-629.77,0.00028766,15]
[336819108,1725190260771,-500.0,0.00028766,15]
[336819109,1725190260780,-1215.96,0.00028766,15]
[336819110,1725190260790,-151.0,0.00028766,7]
[336819111,1725190260799,-227.78746043,0.00028766,15]
[336819112,1725190260809,-500.0,0.00028766,15]
[336819113,1725190260818,-373.656691,0.00028766,28]
[336819114,1725190260828,-500.0,0.00028766,15]
[336819115,1725190260837,-500.0,0.00028766,15]
[336819116,1725190260847,-151.0,0.00028766,7]
[336819117,1725190260856,-151.0,0.00028766,7]
[336819118,1725190260866,-500.0,0.00028766,15]
[336819119,1725190260875,-1170.7,0.00028766,15]
[336819120,1725190260885,-500.0,0.00028766,15]
[336819121,1725190260895,-500.0,0.00028766,15]
[336819122,1725190260905,-510.21098087,0.00028766,15]
[336819123,1725190260914,-500.0,0.00028766,15]
[336819124,1725190260923,-642.09,0.00028766,15]
[336819125,1725190260933,-1085.86,0.00028766,15]
[336819126,1725190260942,-198.218826,0.00028766,7]
[336819127,1725190260952,-504.18658257,0.00028766,15]
[336819128,1725190260962,-739.39,0.00028766,15]
[336819129,1725190260976,-198.218826,0.00028766,7]
[336819130,1725190260986,-281.61844496,0.00028766,15]
[336819131,1725190260996,-968.22,0.00028766,15]
[336819132,1725190261006,-500.0,0.00028766,15]
[336819133,1725190261016,-500.0,0.00028766,15]
[336819134,1725190261025,-1115.8,0.00028766,15]
[336819135,1725190261035,-233.539968,0.00028766,7]
[336819136,1725190261045,-151.0,0.00028766,7]
[336819137,1725190261054,-233.539962,0.00028766,7]
[336819138,1725190261064,-500.0,0.00028766,15]
[336819139,1725190261074,-500.0,0.00028766,15]
[336819140,1725190261084,-731.19,0.00028766,15]
[336819141,1725190261094,-535.55,0.00028766,15]
[336819142,1725190261104,-422.080597,0.00028766,7]
[336819143,1725190261114,-422.080597,0.00028766,7]
[336819144,1725190261123,-668.48,0.00028766,15]
[336819145,1725190261266,-500.0,0.00028766,15]
[336819146,1725190261275,-500.0,0.00028766,15]
[336819147,1725190261284,-802.33,0.00028766,15]
[336819148,1725190261294,-500.0,0.00028766,15]
[336819149,1725190261303,-500.0,0.00028766,15]
[336819150,1725190261312,-551.99576952,0.00028766,15]
[336819151,1725190261322,-500.0,0.00028766,15]
[336819152,1725190261331,-500.0,0.00028767,15]
[336819153,1725190261340,-500.0,0.00028767,15]
[336819154,1725190261349,-500.0,0.00028767,15]
[336819155,1725190261359,-500.0,0.00028767,15]
[336819156,1725190261368,-500.0,0.00028767,15]
[336819157,1725190261377,-500.0,0.00028767,15]
[336819158,1725190261386,-151.0,0.00028767,7]
[336819159,1725190261396,-151.0,0.00028767,7]
[336819160,1725190261405,-1410.7,0.000288,14]
[336819161,1725190261415,-10650.37,0.000288,14]
[336819162,1725190261424,-500.22555746,0.00028821,5]
[336819163,1725190261433,-500.0,0.00028835,15]
[336819164,1725190261444,-264.773244,0.00028878,7]
[336819165,1725190261453,-264.773244,0.00028878,7]
[336819166,1725190261462,-154.946484,0.00028947,2]
[336819167,1725190261471,-775.42,0.00028947,15]
[336819168,1725190261480,-500.0,0.00028947,15]
[336819169,1725190261489,-959.6,0.00028947,15]
[336819170,1725190261499,-842.14,0.00028947,15]
[336819171,1725190261509,-621.06,0.00028947,15]